bitfinex-derivatives/quotes_SOLF0:USTF0_20260311
["timestamp","ask_amount","ask_price","bid_price","bid_amount"]
[1773219881432,3.81604526,85.319,85.282,1.512192]
[1773219886131,3.81604526,85.319,85.288,10.551]
[1773219886327,3.84417987,85.332,85.3,2.81245091]
[1773219889437,3.84417987,85.332,85.291,1.41978953]
[1773219889630,3.84417987,85.332,85.289,11.8]
[1773219890332,3.73400206,85.328,85.289,11.8]
[1773219894344,10.547,85.327,85.289,11.8]
[1773219894539,3.73400206,85.326,85.289,11.8]
[1773219897244,3.73400206,85.324,85.289,11.8]
[1773219897443,3.73400206,85.324,85.28,4.31597853]
[1773219898942,3.73400206,85.324,85.281,1.57283331]
[1773219899142,3.73400206,85.324,85.29,2.81245091]
[1773219900549,3.73400206,85.324,85.283,1.58680932]
[1773219902942,3.73400206,85.322,85.283,1.58680932]
[1773219903144,3.73400206,85.322,85.276,10.553]
[1773219903441,3.73400206,85.322,85.247,29.18047894]
[1773219903442,3.73400206,85.294,85.247,1.58028203]
[1773219903746,3.73400206,85.289,85.247,1.58028203]
[1773219904840,3.73400206,85.289,85.249,1.58028203]
[1773219910150,3.73400206,85.287,85.249,1.58028203]
[1773219914746,3.73400206,85.287,85.251,1.62674128]
[1773219915242,10.551,85.296,85.253,1.62597391]
[1773219915444,3.73400206,85.314,85.271,1.62597391]
[1773219916441,3.73400206,85.312,85.271,1.62597391]
[1773219916646,3.73400206,85.312,85.262,10.555]
[1773219916847,11.8,85.322,85.262,10.555]
[1773219916848,3.73400206,85.309,85.263,1.62597391]
[1773219917250,3.73400206,85.309,85.271,1.62968614]
[1773219917553,10.549,85.307,85.271,1.62968614]
[1773219917756,3.73400206,85.306,85.256,1.62968614]
[1773219917948,3.73400206,85.304,85.261,1.62968614]
[1773219918850,3.73400206,85.316,85.271,1.62968614]
[1773219919054,3.73400206,85.316,85.281,1.62968614]
[1773219919250,3.73400206,85.339,85.291,1.62390188]
[1773219919455,3.73400206,85.333,85.291,1.62390188]
[1773219920660,4.00449172,85.331,85.291,1.62390188]
[1773219921257,4.00449172,85.331,85.265,11.8]
[1773219921258,4.00449172,85.331,85.28,2.81245091]
[1773219921455,4.00449172,85.331,85.28,4.38934801]
[1773219921658,4.00449172,85.329,85.28,4.38934801]
[1773219922054,4.00449172,85.329,85.281,1.5768971]
[1773219922558,4.00449172,85.328,85.281,1.5768971]
[1773219922961,4.00449172,85.328,85.28,2.81245091]
[1773219924461,4.00449172,85.326,85.28,2.81245091]
[1773219925553,4.00449172,85.322,85.28,2.81245091]
[1773219926059,4.00449172,85.317,85.267,11.8]
[1773219926458,4.00449172,85.317,85.27,2.81245091]
[1773219927056,4.00449172,85.313,85.268,1.5866641]
[1773219927254,4.00449172,85.313,85.27,2.81245091]
[1773219928352,4.00449172,85.31,85.27,2.81245091]
[1773219928554,4.00449172,85.309,85.26,2.81245091]
[1773219928763,4.00449172,85.309,85.256,1.60453843]
[1773219929159,4.00449172,85.309,85.26,2.81245091]
[1773219930364,4.00449172,85.299,85.26,2.81245091]
[1773219931158,4.00449172,85.299,85.256,1.60453843]
[1773219931464,4.00449172,85.299,85.257,10.555]
[1773219931664,4.00449172,85.299,85.257,12.08926066]
[1773219932762,4.00449172,85.299,85.26,10.555]
[1773219932959,10.549,85.308,85.27,2.81245091]
[1773219933164,10.549,85.308,85.271,1.53434322]
[1773219935565,4.00449172,85.311,85.271,1.53434322]
[1773219935767,4.00449172,85.311,85.26,1.53382971]
[1773219935970,4.00449172,85.311,85.261,1.53382971]
[1773219936470,4.00449172,85.311,85.271,1.53382971]
[1773219937372,4.00449172,85.323,85.281,1.52272625]
[1773219938869,3.90424398,85.335,85.291,1.51801801]
[1773219939478,3.90424398,85.335,85.293,1.51253217]
[1773219939670,3.90424398,85.335,85.3,2.81273861]
[1773219939872,3.90424398,85.335,85.3,4.32527078]
[1773219940777,3.90424398,85.335,85.29,2.81273861]
[1773219941276,3.90424398,85.335,85.289,1.51253217]
[1773219941476,3.90424398,85.335,85.281,1.43321825]
[1773219942072,10.93304614,85.366,85.281,1.43321825]
[1773219942073,3.90424398,85.323,85.281,1.43321825]
[1773219943880,3.90424398,85.323,85.29,2.81273861]
[1773219950880,3.90424398,85.323,85.29,4.03915381]
[1773219951086,3.71800169,85.339,85.3,2.81273861]
[1773219951884,3.71800169,85.337,85.291,1.2264152]
[1773219953590,3.71800169,85.334,85.29,13.36373861]
[1773219954788,3.71800169,85.334,85.29,10.551]
[1773219956190,3.71800169,85.334,85.29,11.74293673]
[1773219957090,3.71800169,85.334,85.291,1.19662833]
[1773219960691,3.71800169,85.332,85.291,1.19662833]
[1773219962093,3.71800169,85.343,85.303,1.19604401]
[1773219962294,3.71800169,85.352,85.303,1.19604401]
[1773219963400,3.71800169,85.347,85.303,1.19604401]
[1773219963596,3.71800169,85.339,85.28,2.81273861]
[1773219963800,3.71800169,85.329,85.28,2.81273861]
[1773219965191,3.71800169,85.319,85.275,11.8]
[1773219965402,3.71800169,85.319,85.261,1.20302039]
[1773219966399,3.71800169,85.315,85.271,10.553]
[1773219967702,3.71800169,85.308,85.261,1.20302039]
[1773219969503,3.71800169,85.308,85.263,1.20590217]
[1773219971999,3.71800169,85.346,85.297,1.21022349]
[1773219972206,3.71800169,85.339,85.284,1.21022349]
[1773219972403,3.71800169,85.329,85.284,1.21022349]
[1773219972603,3.71800169,85.329,85.27,4.0229621]
[1773219972904,3.71800169,85.329,85.271,1.21022349]
[1773219973506,3.71800169,85.328,85.28,10.552]
[1773219974404,3.71800169,85.325,85.28,10.552]
[1773219974708,10.547,85.326,85.28,10.552]
[1773219974709,3.71800169,85.319,85.28,10.552]
[1773219976510,3.71800169,85.319,85.281,1.4706114]
[1773219977709,3.71800169,85.331,85.288,1.49348057]
[1773219978208,3.71800169,85.331,85.28,2.81273861]
[1773219978209,2.81273861,85.33,85.29,10.551]
[1773219978505,3.71800169,85.319,85.277,1.49348057]
[1773219978707,3.71800169,85.319,85.266,1.49348057]
[1773219979405,3.71800169,85.319,85.275,1.45017069]
[1773219982011,4.06819497,85.316,85.266,12.0418287]
[1773219982312,4.06819497,85.309,85.251,1.4878287]
[1773219982511,4.06819497,85.309,85.262,10.555]
[1773219982707,4.06819497,85.309,85.262,12.0428287]
[1773219983306,4.06819497,85.309,85.203,11.72]
[1773219983307,4.06819497,85.299,85.253,10.556]
[1773219984209,4.06819497,85.299,85.25,4.30432206]
[1773219984814,4.06819497,85.299,85.251,1.49158345]
[1773219985306,10.55,85.298,85.251,1.49158345]
[1773219985511,4.06819497,85.297,85.251,1.49158345]
[1773219987812,4.06819497,85.294,85.251,1.49158345]
[1773219988014,4.06819497,85.289,85.24,1.54390236]
[1773219988414,4.06819497,85.279,85.231,11.8]
[1773219988614,4.06819497,85.279,85.232,1.54390236]
[1773219989420,4.06819497,85.279,85.234,1.54016614]
[1773219990019,4.06819497,85.279,85.235,12.09816614]
[1773219991822,4.06819497,85.279,85.236,1.55241969]
[1773219997118,4.06819497,85.279,85.239,1.45406177]
[1773219998317,4.06819497,85.279,85.241,12.01106177]
[1773219998623,4.06819497,85.291,85.242,1.45406177]
[1773219999619,3.81233665,85.289,85.242,1.45406177]
[1773220000324,3.81233665,85.289,85.243,10.557]
[1773220000624,3.81233665,85.289,85.244,1.4440202]
[1773220001216,3.81233665,85.289,85.247,10.556]
[1773220003623,3.81233665,85.289,85.248,1.48149754]
[1773220006220,3.81233665,85.288,85.239,10.558]
[1773220007023,3.81233665,85.286,85.242,1.47525011]
[1773220010321,3.81233665,85.286,85.243,10.557]
[1773220011819,32.02828032,85.332,85.226,11.8]
[1773220011820,2.81515838,85.28,85.234,10.558]
[1773220012016,2.81515838,85.28,85.231,1.41884]
[1773220012017,4.01617347,85.279,85.231,1.41884]
[1773220013023,4.01617347,85.269,85.22,4.23399838]
[1773220013222,4.01617347,85.269,85.225,10.559]
[1773220013721,4.01617347,85.269,85.226,1.44248606]
[1773220019930,4.01617347,85.267,85.22,2.81515838]
[1773220020640,4.01617347,85.267,85.22,4.27042947]
[1773220020841,4.01617347,85.267,85.224,1.45527109]
[1773220024335,14.57017347,85.267,85.224,1.45527109]
[1773220024542,4.01617347,85.266,85.224,1.45527109]
[1773220026342,4.01617347,85.266,85.225,10.559]
[1773220026537,4.01617347,85.266,85.226,1.30196011]
[1773220029942,4.01617347,85.266,85.22,2.81515838]
[1773220029943,4.01617347,85.266,85.229,1.26505858]
[1773220030542,10.552,85.285,85.233,1.26505858]
[1773220030744,4.01617347,85.285,85.241,1.26505858]
[1773220031346,4.01617347,85.279,85.231,1.28657522]
[1773220032451,4.01617347,85.278,85.233,11.84457522]
[1773220034150,4.01617347,85.278,85.234,1.27065737]
[1773220034350,2.81515838,85.28,85.234,1.27065737]
[1773220034351,4.01617347,85.276,85.234,1.27065737]
[1773220036854,4.01617347,85.273,85.234,1.27065737]
[1773220037949,4.01617347,85.273,85.236,1.29278479]
[1773220039349,4.01617347,85.273,85.237,11.82322282]
[1773220044161,4.01617347,85.273,85.238,1.26285554]
[1773220046664,4.01617347,85.273,85.24,1.24431094]
[1773220046863,3.69594852,85.287,85.241,1.24431094]
[1773220048466,3.69594852,85.287,85.248,1.24427136]
[1773220049362,3.69594852,85.287,85.252,10.556]
[1773220049669,3.69594852,85.298,85.261,1.24959471]
[1773220050067,3.69594852,85.319,85.281,1.24959471]
[1773220054568,3.69594852,85.319,85.282,1.2735475]
[1773220058070,0.00015838,85.34,85.282,1.2735475]
[1773220058268,3.89857707,85.355,85.32,2.81515838]
[1773220058468,3.89857707,85.349,85.292,1.20013284]
[1773220058668,3.89857707,85.349,85.31,2.81515838]
[1773220059868,3.89857707,85.349,85.3,2.81515838]
[1773220060270,3.89857707,85.347,85.3,2.81515838]
[1773220061467,3.89857707,85.345,85.3,2.81515838]
[1773220061664,3.89857707,85.345,85.3,2.81129834]
[1773220064873,3.89857707,85.345,85.301,1.31658826]
[1773220067675,3.89857707,85.343,85.3,2.81129834]
[1773220067867,3.89857707,85.343,85.29,1.31831875]
[1773220068073,11.8,85.38,85.29,4.12961709]
[1773220068074,3.89857707,85.339,85.29,4.12961709]
[1773220069464,2.81129834,85.34,85.29,4.12961709]
[1773220069465,3.89857707,85.333,85.29,4.12961709]
[1773220070773,3.89647404,85.324,85.28,2.81129834]
[1773220071175,3.89647404,85.324,85.28,4.06992225]
[1773220071679,3.89647404,85.324,85.282,1.25862391]
[1773220073771,3.89647404,85.339,85.291,1.25131719]
[1773220073978,14.44247404,85.336,85.291,1.25131719]
[1773220074379,3.89647404,85.335,85.291,1.25131719]
[1773220075078,3.89647404,85.333,85.283,10.552]
[1773220075478,3.89647404,85.333,85.281,1.25509002]
[1773220076383,3.89647404,85.327,85.283,1.25509002]
[1773220076979,3.89647404,85.327,85.29,2.81129834]
[1773220077183,3.89647404,85.327,85.283,1.25509002]
[1773220080384,3.89647404,85.325,85.282,10.552]
[1773220081380,3.89647404,85.325,85.282,11.80829878]
[1773220082478,3.89647404,85.325,85.283,1.25629878]
[1773220085382,10.546,85.334,85.285,1.22217518]
[1773220085579,14.44247404,85.334,85.285,1.22217518]
[1773220085785,3.89647404,85.333,85.285,1.22217518]
[1773220085991,3.89647404,85.329,85.28,2.81129834]
[1773220086388,3.89647404,85.329,85.281,1.22217518]
[1773220087481,3.89647404,85.329,85.282,1.2452674]
[1773220088390,3.89647404,85.329,85.284,1.2452674]
[1773220089191,3.89647404,85.325,85.284,1.2452674]
[1773220089986,2.81129834,85.33,85.284,1.2452674]
[1773220089987,3.89647404,85.322,85.284,1.2452674]
[1773220091293,3.89647404,85.322,85.286,1.24514824]
[1773220091494,10.546,85.331,85.286,1.24514824]
[1773220091891,14.44247404,85.331,85.286,1.24514824]
[1773220092090,3.89647404,85.33,85.286,1.24514824]
[1773220092493,3.89647404,85.33,85.287,11.79714824]
[1773220092990,3.89647404,85.33,85.288,1.24514824]
[1773220095395,3.89647404,85.33,85.29,1.24857474]
[1773220096392,3.89647404,85.329,85.279,1.24857474]
[1773220096597,3.89647404,85.309,85.268,1.24857474]
[1773220098487,3.89647404,85.309,85.269,10.554]
[1773220102294,3.89647404,85.309,85.27,2.81129834]
[1773220102694,3.89647404,85.309,85.271,1.27230532]
[1773220107701,3.89647404,85.309,85.27,2.81129834]
[1773220108400,3.87691701,85.307,85.261,11.74848332]
[1773220109196,2.81129834,85.32,85.261,11.74848332]
[1773220109197,3.87691701,85.304,85.261,11.74848332]
[1773220112098,3.87691701,85.315,85.271,1.19833945]
[1773220113403,3.87691701,85.315,85.274,1.19804119]
[1773220116200,3.87691701,85.315,85.277,10.553]
[1773220116399,3.87691701,85.315,85.278,1.20276644]
[1773220117402,3.87691701,85.315,85.279,10.552]
[1773220122203,3.87691701,85.315,85.278,1.20276644]
[1773220124115,3.87691701,85.315,85.278,11.75576644]
[1773220124313,3.87691701,85.315,85.279,1.10012708]
[1773220125315,3.87691701,85.315,85.28,10.552]
[1773220131028,3.87691701,85.315,85.243,29.18047894]
[1773220131029,3.83346022,85.326,85.291,1.10127668]
[1773220137724,3.83346022,85.326,85.293,1.08359706]
[1773220137930,3.83346022,85.34,85.301,1.08359706]
[1773220138530,3.83346022,85.357,85.311,1.08359706]
[1773220139437,3.83346022,85.355,85.311,1.08359706]
[1773220140434,3.83346022,85.353,85.311,1.08359706]
[1773220141036,3.83346022,85.353,85.32,2.81310457]
[1773220141238,3.83346022,85.369,85.33,2.81310457]
[1773220143939,3.83346022,85.369,85.33,3.88937829]
[1773220144632,3.83346022,85.369,85.333,10.546]
[1773220144833,3.83346022,85.369,85.334,1.07627372]
[1773220145236,3.83346022,85.369,85.34,2.81310457]
[1773220146034,11.8,85.399,85.34,2.81310457]
[1773220146035,3.83346022,85.381,85.343,1.07233547]
[1773220146236,3.83346022,85.381,85.34,2.81310457]
[1773220146237,3.83346022,85.392,85.34,2.81310457]
[1773220146441,3.83346022,85.389,85.34,2.81310457]
[1773220147141,3.83346022,85.389,85.35,2.81310457]
[1773220147341,3.83346022,85.389,85.347,10.544]
[1773220147841,3.83346022,85.389,85.348,1.07382149]
[1773220154743,3.83346022,85.383,85.348,1.07382149]
[1773220155448,3.83346022,85.383,85.35,10.544]
[1773220155643,3.83346022,85.383,85.351,1.05001964]
[1773220158642,3.83346022,85.383,85.353,1.06013945]
[1773220158844,3.83346022,85.395,85.353,1.06013945]
[1773220160043,3.83346022,85.395,85.363,1.08554194]
[1773220161448,3.83346022,85.395,85.365,1.08789357]
[1773220161646,0.07395208,85.388,85.365,1.08789357]
[1773220161950,4.01617832,85.405,85.365,1.08789357]
[1773220162152,4.01617832,85.405,85.373,1.08789357]
[1773220162444,11.8,85.446,85.334,35.19]
[1773220162445,4.01617832,85.415,85.381,1.08789357]
[1773220162840,4.01617832,85.415,85.378,10.54]
[1773220166052,4.01617832,85.415,85.371,1.12182025]
[1773220166248,4.01617832,85.415,85.381,1.12182025]
[1773220167347,2.81310457,85.43,85.389,10.539]
[1773220167553,3.88835488,85.429,85.39,1.13086835]
[1773220167747,3.88835488,85.429,85.391,1.13086835]
[1773220168349,3.88835488,85.429,85.388,10.539]
[1773220170754,3.88835488,85.429,85.391,10.539]
[1773220176759,3.88835488,85.429,85.401,0.07400967]
[1773220181060,3.88835488,85.429,85.376,1.11737413]
[1773220181363,21.062,85.456,85.376,1.11737413]
[1773220181364,3.84070751,85.419,85.376,1.11737413]
[1773220181958,3.84070751,85.419,85.387,11.74065776]
[1773220182263,3.84070751,85.419,85.387,1.20165776]
[1773220182464,0.07391446,85.406,85.387,1.20165776]
[1773220185365,0.07391446,85.406,85.388,10.539]
[1773220185962,0.07391446,85.406,85.394,10.538]
[1773220186168,3.84070751,85.435,85.395,1.19507152]
[1773220186665,3.84070751,85.432,85.396,10.538]
[1773220187768,3.84070751,85.43,85.396,10.538]
[1773220188770,3.84070751,85.429,85.39,10.539]
[1773220190165,3.96181771,85.423,85.384,11.66145318]
[1773220191265,3.96181771,85.421,85.384,11.66145318]
[1773220192566,3.96181771,85.419,85.384,10.54]
[1773220196876,3.96181771,85.415,85.375,1.15902496]
[1773220197874,3.96181771,85.415,85.376,1.18077117]
[1773220199078,3.96181771,85.415,85.381,1.18077117]
[1773220199580,3.96181771,85.415,85.383,1.15759249]
[1773220200473,3.96181771,85.415,85.382,10.54]
[1773220200874,3.96181771,85.415,85.376,10.541]
[1773220202276,2.80592316,85.41,85.363,1.16555178]
[1773220202578,3.96181771,85.409,85.363,1.16555178]
[1773220203178,3.96181771,85.423,85.381,1.17359655]
[1773220203771,3.96181771,85.415,85.371,1.17359655]
[1773220205481,3.96181771,85.41,85.371,1.17359655]
[1773220205982,3.96181771,85.399,85.351,1.14529449]
[1773220206185,3.96181771,85.399,85.382,0.07383771]
[1773220206586,3.96181771,85.399,85.365,1.14529449]
[1773220207785,10.537,85.404,85.368,1.24656945]
[1773220207980,3.96181771,85.411,85.368,1.24656945]
[1773220208383,3.96181771,85.411,85.37,4.05249261]
[1773220208587,3.96181771,85.411,85.371,1.24656945]
[1773220209491,3.96181771,85.41,85.371,1.24656945]
[1773220210685,3.96181771,85.402,85.361,10.542]
[1773220211191,3.96181771,85.402,85.361,11.82547322]
[1773220211492,3.96181771,85.402,85.364,11.82547322]
[1773220212697,0.07389095,85.392,85.364,11.82547322]
[1773220215587,0.07389095,85.392,85.365,1.26262697]
[1773220215992,0.07389095,85.392,85.367,10.542]
[1773220217998,0.07389095,85.392,85.371,1.25382907]
[1773220218299,10.536,85.414,85.371,1.25382907]
[1773220218493,3.96181771,85.413,85.371,1.25382907]
[1773220218696,3.96181771,85.413,85.374,1.25382907]
[1773220220004,3.9912662,85.409,85.36,2.80592316]
[1773220220311,3.9912662,85.399,85.354,1.25370961]
[1773220220899,3.9912662,85.399,85.368,0.07398949]
[1773220221502,3.9912662,85.397,85.368,0.07398949]
[1773220222597,3.9912662,85.389,85.341,1.27938326]
[1773220223603,2.80592316,85.4,85.356,1.34892064]
[1773220223801,3.9912662,85.402,85.356,1.34892064]
[1773220225501,3.9912662,85.402,85.361,10.542]
[1773220226598,2.80592316,85.4,85.361,10.542]
[1773220226995,3.9912662,85.399,85.361,10.542]
[1773220227298,3.9912662,85.399,85.356,1.34892064]
[1773220227299,3.9912662,85.389,85.344,1.35427414]
[1773220228105,2.80592316,85.39,85.344,1.35427414]
[1773220228106,3.9912662,85.385,85.344,1.35427414]
[1773220229301,3.9912662,85.379,85.331,13.12863277]
[1773220229500,3.9912662,85.379,85.331,1.32863277]
[1773220230302,3.9912662,85.362,85.311,1.32863277]
[1773220230498,10.542,85.363,85.311,1.32863277]
[1773220230499,3.9912662,85.359,85.311,1.32863277]
[1773220231408,3.9912662,85.359,85.321,10.547]
[1773220231604,3.9912662,85.355,85.311,1.32863277]
[1773220232400,3.9912662,85.355,85.319,10.548]
[1773220232905,3.9912662,85.369,85.331,1.33752535]
[1773220233508,3.9912662,85.389,85.331,1.33752535]
[1773220234508,3.9912662,85.389,85.339,10.545]
[1773220234509,10.54,85.38,85.339,10.545]
[1773220235317,3.9912662,85.386,85.346,10.544]
[1773220235607,3.9912662,85.386,85.351,1.35011443]
[1773220236112,3.9912662,85.386,85.352,10.543]
[1773220236316,3.9912662,85.386,85.351,1.35011443]
[1773220237507,3.9912662,85.386,85.358,10.543]
[1773220237909,3.9912662,85.386,85.351,1.35011443]
[1773220239314,3.9912662,85.386,85.351,11.89411443]
[1773220239610,3.9912662,85.386,85.351,1.35011443]
[1773220239808,0.07402169,85.377,85.351,1.35011443]
[1773220241311,0.07402169,85.377,85.357,10.543]
[1773220242814,9.30543124,85.429,85.339,11.8]
[1773220242815,2.80592316,85.41,85.368,1.31019898]
[1773220243015,4.03840356,85.409,85.368,1.31019898]
[1773220243416,4.03840356,85.409,85.36,2.80592316]
[1773220243617,4.03840356,85.401,85.36,2.80592316]
[1773220245618,4.03840356,85.401,85.36,2.80759594]
[1773220250725,3.99320864,85.398,85.358,10.543]
[1773220251722,3.99320864,85.398,85.36,2.80759594]
[1773220252224,3.99320864,85.398,85.36,4.11537985]
[1773220253129,3.99320864,85.398,85.361,1.30778391]
[1773220253426,3.99320864,85.398,85.361,11.84978391]
[1773220254424,3.99320864,85.398,85.371,0.07424459]
[1773220261024,3.99320864,85.389,85.34,2.80759594]
[1773220261222,3.99320864,85.379,85.335,1.38746136]
[1773220261928,3.99320864,85.379,85.33,2.80759594]
[1773220262428,3.99320864,85.376,85.336,10.545]
[1773220262824,0.07422714,85.363,85.336,10.545]
[1773220273931,0.07422714,85.363,85.332,1.38252176]
[1773220275327,0.07422714,85.363,85.322,1.41393063]
[1773220275328,4.06743578,85.363,85.322,1.41393063]
[1773220276035,3.99320864,85.388,85.341,1.41393063]
[1773220277437,3.99320864,85.386,85.347,1.34651683]
[1773220278238,10.54,85.38,85.347,1.34651683]
[1773220278938,14.53320864,85.38,85.347,1.34651683]
[1773220279640,4.06997977,85.379,85.347,1.34651683]
[1773220279842,4.06997977,85.379,85.34,2.80759594]
[1773220280042,4.06997977,85.379,85.336,1.35078534]
[1773220281742,4.06997977,85.379,85.34,2.80759594]
[1773220282441,4.06997977,85.378,85.34,2.80759594]
[1773220283653,4.06997977,85.378,85.336,1.35078534]
[1773220283654,4.06997977,85.375,85.336,1.35078534]
[1773220284750,4.06997977,85.375,85.338,10.545]
[1773220284951,4.06997977,85.375,85.339,1.40192215]
[1773220286455,4.06997977,85.375,85.341,10.545]
[1773220286856,4.06997977,85.375,85.348,0.07406058]
[1773220290457,10.541,85.374,85.348,0.07406058]
[1773220290655,4.06997977,85.373,85.348,0.07406058]
[1773220295468,4.06997977,85.369,85.32,2.80759594]
[1773220295761,4.06997977,85.369,85.321,1.53048941]
[1773220296063,4.06997977,85.369,85.331,1.53048941]
[1773220297365,4.06997977,85.369,85.332,1.50622185]
[1773220297964,4.06997977,85.367,85.332,1.50622185]
[1773220301567,3.9826833,85.381,85.341,1.48989304]
[1773220303372,3.9826833,85.381,85.348,10.544]
[1773220303969,3.9826833,85.381,85.341,12.03489304]
[1773220306667,3.9826833,85.379,85.341,12.03489304]
[1773220307063,3.9826833,85.379,85.341,1.48989304]
[1773220307362,3.9826833,85.379,85.333,10.546]
[1773220307960,2.80975177,85.38,85.323,11.8]
[1773220307961,2.80975177,85.4,85.35,2.80975177]
[1773220308170,21.068,85.431,85.323,11.8]
[1773220308171,3.9826833,85.389,85.341,1.47805505]
[1773220308570,3.9826833,85.369,85.321,1.47805505]
[1773220309968,2.80975177,85.37,85.321,1.47805505]
[1773220309969,4.06836778,85.366,85.321,1.47805505]
[1773220311378,4.06836778,85.363,85.322,10.547]
[1773220317874,4.06836778,85.363,85.325,10.547]
[1773220320284,4.06836778,85.361,85.325,10.547]
[1773220321484,0.07421289,85.352,85.323,1.50288147]
[1773220323378,0.07421289,85.352,85.324,10.547]
[1773220323583,0.07421289,85.352,85.324,11.9890494]
[1773220326083,10.544,85.351,85.315,1.44781122]
[1773220326286,4.06836778,85.35,85.315,1.44781122]
[1773220326485,4.06836778,85.35,85.301,1.44781122]
[1773220326486,4.06836778,85.349,85.301,1.44781122]
[1773220326883,4.06836778,85.34,85.301,1.44781122]
[1773220327683,4.06836778,85.34,85.302,10.55]
[1773220328186,4.06836778,85.34,85.302,11.97232499]
[1773220328388,2.80975177,85.35,85.302,11.97232499]
[1773220328389,4.06836778,85.338,85.302,11.97232499]
[1773220328892,4.06836778,85.338,85.29,2.80975177]
[1773220328893,4.06836778,85.338,85.296,10.55]
[1773220329286,4.06836778,85.338,85.296,11.96751333]
[1773220329487,4.06836778,85.338,85.297,1.41751333]
[1773220329786,0.07435651,85.326,85.297,1.41751333]
[1773220330390,4.14272429,85.326,85.288,1.41751333]
[1773220331087,0.07435651,85.326,85.291,1.41751333]
[1773220332485,0.07435651,85.326,85.293,1.44858613]
[1773220333592,10.62135651,85.326,85.293,1.44858613]
[1773220339693,3.74588851,85.319,85.281,1.40885811]
[1773220341394,14.29388851,85.315,85.281,1.40885811]
[1773220345296,3.74588851,85.314,85.281,1.40885811]
[1773220346194,0.07415053,85.306,85.281,1.40885811]
[1773220352005,0.07415053,85.306,85.261,2.03982345]
[1773220352006,3.82003904,85.306,85.271,10.553]
[1773220352201,3.82003904,85.306,85.272,11.8]
[1773220352601,3.82003904,85.306,85.272,13.20405214]
[1773220352802,3.74588851,85.303,85.27,2.80975177]
[1773220353103,3.74588851,85.303,85.264,10.554]
[1773220353301,3.74588851,85.3,85.262,1.40405214]
[1773220353497,3.74588851,85.3,85.25,2.80975177]
[1773220353498,3.74588851,85.299,85.25,2.80975177]
[1773220354096,2.80975177,85.3,85.25,2.80975177]
[1773220354097,14.29788851,85.285,85.25,2.80975177]
[1773220354302,3.74588851,85.284,85.24,2.80975177]
[1773220354508,3.74588851,85.284,85.233,1.40131216]
[1773220354710,3.74588851,85.272,85.233,1.40131216]
[1773220355113,10.554,85.267,85.233,1.40131216]
[1773220357010,14.29988851,85.267,85.233,1.40131216]
[1773220357205,3.74588851,85.259,85.211,1.44746583]
[1773220358007,3.76912987,85.253,85.206,11.8]
[1773220358211,3.76912987,85.249,85.206,11.8]
[1773220359009,3.76912987,85.238,85.206,11.8]
[1773220359608,3.76912987,85.236,85.206,11.8]
[1773220360912,3.76912987,85.236,85.195,1.51287788]
[1773220362415,0.07392774,85.224,85.195,1.51287788]
[1773220371618,0.07392774,85.224,85.197,1.57089718]
[1773220371920,0.07392774,85.224,85.201,1.57089718]
[1773220372516,3.84575512,85.247,85.21,1.57089718]
[1773220372721,3.84575512,85.247,85.211,1.57089718]
[1773220372914,10.555,85.257,85.218,10.56]
[1773220373113,3.84575512,85.258,85.219,1.57089718]
[1773220373515,3.84575512,85.258,85.21,2.81853173]
[1773220373822,3.84575512,85.258,85.21,4.3875372]
[1773220374020,3.84575512,85.258,85.211,1.56900547]
[1773220374421,3.84575512,85.256,85.214,1.56900547]
[1773220377020,3.84575512,85.256,85.215,10.56]
[1773220377523,3.84575512,85.256,85.215,12.23087465]
[1773220381323,3.84575512,85.256,85.219,12.22815322]
[1773220381918,3.84575512,85.239,85.194,1.66815322]
[1773220383726,3.84575512,85.249,85.201,1.62806201]
[1773220384021,10.557,85.242,85.202,1.62806201]
[1773220385018,3.84575512,85.241,85.202,1.62806201]
[1773220385322,3.84575512,85.241,85.204,10.562]
[1773220385522,3.84575512,85.241,85.204,12.16972159]
[1773220386824,3.84575512,85.241,85.205,1.60772159]
[1773220388326,3.84575512,85.241,85.2,2.81853173]
[1773220388327,3.84575512,85.241,85.207,1.59658548]
[1773220390320,3.84575512,85.232,85.191,1.58876136]
[1773220390522,3.84575512,85.249,85.201,1.58876136]
[1773220390825,3.84575512,85.249,85.211,1.58876136]
[1773220391228,3.84575512,85.249,85.214,1.58876136]
[1773220392625,3.84575512,85.259,85.221,1.66881605]
[1773220394326,3.84575512,85.259,85.222,10.56]
[1773220395926,3.84575512,85.259,85.221,1.66881605]
[1773220395927,14.39975512,85.269,85.229,1.71428016]
[1773220396133,3.84575512,85.268,85.229,1.71428016]
[1773220397135,3.84575512,85.265,85.229,1.71428016]
[1773220397434,3.84575512,85.259,85.21,2.81853173]
[1773220397634,3.84575512,85.259,85.21,4.53059156]
[1773220397838,3.84575512,85.257,85.212,1.71205983]
[1773220400337,3.84575512,85.257,85.216,10.56]
[1773220401546,32.903,85.291,85.197,11.8]